Cogmind - Beta 10.1 @@@ ROGUE MODE // 2020.10.25 @ 08:03:50 Player: Demise Result: Destroyed by 8R-AWN with 8R-AWN's Boregun Performance ------------- Evolutions (0) 0 Regions Visited (3) 600 Robots Destroyed (32) 160 Value Destroyed (476) 476 Prototype IDs (25) 500 Alien Tech Used (0) 0 Bonus (300) 300 TOTAL SCORE: 2036 Bonus ------- Aligned with FarCom 300 Cogmind --------- Core Integrity 0/250 Matter 11/300 Energy 250/250 System Corruption 0% Temperature Cool (0) Movement Core (1500) Ox29 Location -10/Exiles Parts ------- > --- POWER (1) -------- Ion Engine > --- PROPULSION (2) --- (None) > --- UTILITY (2) ------ Humpback > --- WEAPON (2) ------- Assault Rifle Assault Rifle > --- INVENTORY (24) --- Large Storage Unit High-capacity Storage Unit High-capacity Storage Unit High-capacity Storage Unit Superbattery (2000) High-capacity Matter Pod (200) Signal Interpreter Propulsion Shielding Latent Energy Streamer Guided Plasma Cannon Assault Rifle Light Assault Rifle Grenade Launcher Datajack Mining Laser Peak State ------------ > --- POWER ------------ Ion Engine > --- PROPULSION ------- Light Treads > --- UTILITY ---------- Humpback > --- WEAPON ----------- Guided Plasma Cannon Assault Rifle > --- INVENTORY -------- Improved Heat Sink Large Storage Unit High-capacity Storage Unit High-capacity Storage Unit High-capacity Storage Unit Superbattery High-capacity Matter Pod Signal Interpreter Propulsion Shielding Latent Energy Streamer Assault Rifle Assault Rifle Assault Rifle Light Assault Rifle Grenade Launcher Datajack Mining Laser [Rating: 16] Favorites ----------- Power Light Nuclear Core Engine Light Ion Engine Power Core Light Nuclear Core Propulsion Light Treads Treads Light Treads Leg Aluminum Leg Utility High-capacity Storage Unit Storage High-capacity Storage Unit Weapon Light Assault Rifle Energy Gun Particle Gun Energy Cannon Guided Plasma Cannon Ballistic Gun Light Assault Rifle Launcher Grenade Launcher Special Weapon Mining Laser Build | -11 -10 -10 -10 ------- Run | Scr Mat Min Exi Slots Evolved . | . . . . Power . | . . . . Propulsion . | . . . . Utility . | . . . . Weapon . | . . . . Parts Attached 43 | 1 23 8 11 Power 4 | . 1 2 1 Engine 3 | . 1 1 1 Core 1 | . . 1 . Reactor . | . . . . Propulsion 8 | . 5 2 1 Treads 8 | . 5 2 1 Leg . | . . . . Wheel . | . . . . Hover . | . . . . Flight . | . . . . Utility 4 | 1 2 . 1 Device . | . . . . Storage 4 | 1 2 . 1 Processor . | . . . . Hackware . | . . . . Protection . | . . . . Artifact . | . . . . Weapon 27 | . 15 4 8 Energy Gun 7 | . 6 1 . Energy Cannon 1 | . . . 1 Ballistic Gun 14 | . 6 2 6 Ballistic Cannon . | . . . . Launcher 3 | . 1 1 1 Special Weapon 2 | . 2 . . Impact Weapon . | . . . . Slashing Weapon . | . . . . Piercing Weapon . | . . . . Special Melee Weapon . | . . . . Unidentified Prototypes . | . . . . Parts Lost 14 | . 1 6 7 Power 2 | . . 1 1 Propulsion 5 | . . 2 3 Utility . | . . . . Weapon 7 | . 1 3 3 Highest Loss Streak 4 | . 1 3 4 Average Slot Usage (%) 92 | . 99 96 83 Engine 6 | . 13 5 1 Core 7 | . . 8 12 Treads 26 | . 26 27 25 Storage 24 | . 28 28 19 Energy Gun 7 | . 7 16 . Ballistic Gun 14 | . 18 8 17 Launcher 2 | . . . 5 Naked Turns . | . . . . Heaviest Build 90 | 14 72 73 90 Greatest Support 40 | 20 40 40 40 Greatest Overweight (x) 3 | . 3 3 2 Average Overweight (x) 1 | . . 1 1 Largest Inventory Capacity 24 | 8 20 20 24 Average Capacity 19 | 7 17 20 22 Most Carried 24 | 8 20 20 24 Average Carried 18 | 6 16 18 19 Final Capacity 24 | 8 20 20 24 Final Carried 20 | 8 20 17 15 Class Distribution -------------------- 90% | Hauler-Mutant 9% | Mutant Dominant Class ---------------- Hauler-Mutant | -10/Materials Hauler-Mutant | -10/Mines Hauler-Mutant | -10/Exiles Resources | -11 -10 -10 -10 ----------- Run | Scr Mat Min Exi Matter Collected 842 | 214 386 181 61 Remotely . | . . . . Salvage Created 767 | 92 466 178 31 Parts 46 | 4 34 8 . Haulers Intercepted 1 | . 1 . . Recyclers Shooed 1 | . . 1 . Parts Field Recycled . | . . . . Retrieved Matter . | . . . . Parts Self-Destructed . | . . . . Prevented . | . . . . Kills | -11 -10 -10 -10 ------- Run | Scr Mat Min Exi Combat Hostiles Destroyed 26 | . 12 10 4 Melee 1 | . . 1 . Guns 20 | . 12 7 1 AOE 5 | . . 2 3 Classes Destroyed 9 | 2 6 1 . Worker 1 | . 1 . . Tunneler 1 | 1 . . . Hauler 1 | . 1 . . Recycler 1 | 1 . . . Operator 1 | . 1 . . Watcher 1 | . 1 . . Swarmer 12 | . 6 6 . Grunt 8 | . 6 2 . Assembled 6 | . . 2 4 Best Kill Streak 4 | 2 3 4 4 Combat Bots Only 4 | . 3 4 4 Max Kills in Single Turn 2 | 1 2 2 2 Gunslinging 1 | . 1 . . Exploded 2 | . . 2 2 Melee 1 | . . 1 . Uniques/NPCs Destroyed . | . . . . Combat | -11 -10 -10 -10 -------- Run | Scr Mat Min Exi Damage Taken 2214 | . 386 582 1246 Core 256 | . 51 90 115 Absorbed by Shields . | . . . . Core Remaining (%) 100 | 100 . . . Volleys Fired 123 | 4 37 33 49 Largest 2 | 2 2 2 2 Hottest 120 | 70 115 115 120 Shots Fired 213 | 8 69 47 89 Gun 203 | 8 66 46 83 Cannon 4 | . . . 4 Launcher 3 | . . 1 2 Special 3 | . 3 . . Kinetic 141 | 4 37 17 83 Thermal 69 | 4 32 29 4 Explosive 3 | . . 1 2 Electromagnetic . | . . . . Robot Hit Streak 17 | 4 10 11 17 Robot Miss Streak 3 | 3 2 3 1 Penetration Max . | . . . . Secondary Targets 1 | . 1 . . Max Gunslinging Chain 1 | . 1 . . Shots Hit Robots 153 | 5 45 30 73 Core Hits 64 | 3 26 15 20 Critical Hits 1 | . . . 1 Critical Kills . | . . . . Critical Parts Destroyed . | . . . . Melee Attacks . | . . . . Impact . | . . . . Slashing . | . . . . Piercing . | . . . . Sneak Attacks . | . . . . Combat Hostiles . | . . . . Follow-up Attacks . | . . . . Damage Inflicted 2159 | 59 509 516 1075 Guns 1758 | 59 509 375 815 Cannons 142 | . . . 142 Explosions 230 | . . 112 118 Melee . | . . . . Ramming 29 | . . 29 . Kinetic 1243 | 33 310 85 815 Thermal 657 | 26 199 290 142 Explosive 230 | . . 112 118 Electromagnetic . | . . . . Impact . | . . . . Slashing . | . . . . Piercing . | . . . . Highest Corruption . | . . . . Average Corruption . | . . . . Corruption Purged . | . . . . Overload Shots . | . . . . Overflow Damage 32 | . . 32 . Projectiles . | . . . . Explosions 32 | . . 32 . Melee . | . . . . Knockbacks . | . . . . Impact . | . . . . Kinetic . | . . . . Secondary . | . . . . Self-Inflicted Damage 42 | . . 42 . Shots 1 | . . 1 . Rammed 6 | . . 6 . Targets Rammed 7 | . . 7 . Kicked . | . . . . Crushed 1 | . . 1 . Highest Temperature 324 | 40 324 222 320 Average Temperature 89 | 20 99 74 113 Received Heat Transfer 138 | . 87 51 . Effects 1 | . . 1 . Energy Bleed 1 | . . 1 . Siege Activations . | . . . . Robots Corrupted . | . . . . Combat Hostiles . | . . . . Parts Fried . | . . . . Impact Corruptions . | . . . . Robots Melted . | . . . . Combat Hostiles . | . . . . Parts Melted 1 | 1 . . . Heat Transferred 1401 | 74 507 740 80 Parts Sabotaged . | . . . . Parts Stolen . | . . . . Parts Stripped . | . . . . Power Chain Reactions . | . . . . Missiles Intercepted . | . . . . Alert | -11 -10 -10 -10 ------- Run | Scr Mat Min Exi Peak Influence 282 | 10 282 188 . Initial 51 | . 6 51 . Average 89 | 7 112 69 . Maximum Alert Level 1 | . 1 . . Low Security (%) 92 | 100 85 100 . Level 1 7 | . 14 . . Level 2 . | . . . . Level 3 . | . . . . Level 4 . | . . . . Level 5 . | . . . . High Security . | . . . . Max Security . | . . . . Squads Dispatched 2 | . 2 . . Investigation 1 | . 1 . . Extermination . | . . . . Reinforcement 1 | . 1 . . Assault . | . . . . Garrison . | . . . . Intercept . | . . . . Construction Impeded . | . . . . Haulers Reinforced . | . . . . Stealth | -11 -10 -10 -10 --------- Run | Scr Mat Min Exi Distress Signals 1 | . 1 . . Communications Jammed . | . . . . Distress Signals . | . . . . Times Spotted 35 | . 16 12 7 Peak Tracking Total 9 | . 3 3 9 Tactical Retreats 1 | . . 1 . Traps | -11 -10 -10 -10 ------- Run | Scr Mat Min Exi Traps Triggered 3 | . 3 . . Indirectly . | . . . . Trap Hack Attempts . | . . . . Triggered . | . . . . Disarmed . | . . . . Reprogrammed . | . . . . Reused . | . . . . Traps Extracted . | . . . . Installed . | . . . . Triggered . | . . . . Exploded 3 | . . . 3 Machines | -11 -10 -10 -10 ---------- Run | Scr Mat Min Exi Machines Disabled 6 | . . 1 5 Max in Single Turn 2 | . . 1 2 Machines Sabotaged . | . . . . Garrisons Compromised . | . . . . Overloaded Fab Kills . | . . . . Fab Network Shutdowns . | . . . . Hacking | -11 -10 -10 -10 --------- Run | Scr Mat Min Exi Machines Accessed 9 | . 6 1 2 Terminals 7 | . 6 1 . Fabricators . | . . . . Repair Stations . | . . . . Recycling Units . | . . . . Scanalyzers . | . . . . Garrison Access . | . . . . Total Hacks 35 | . 28 5 2 Successful 21 | . 17 2 2 Failed 14 | . 11 3 . Catastrophic . | . . . . Database Lockouts . | . . . . Manual 30 | . 24 5 1 Terminals 33 | . 28 5 . Fabricators . | . . . . Repair Stations . | . . . . Recycling Units . | . . . . Scanalyzers . | . . . . Garrison Access . | . . . . Terminal Hacks 15 | . 11 2 2 Record 1 | . . . 1 Part Schematic 4 | . 2 2 . Robot Analysis 4 | . 4 . . Prototype ID Bank 1 | . 1 . . Terminal Index 1 | . 1 . . Locate Traps 1 | . 1 . . Hauler Manifests 1 | . 1 . . Zone Layout 1 | . 1 . . EX-Prototype ID Bank 1 | . . . 1 Fabricator Hacks . | . . . . Repair Station Hacks . | . . . . Recycling Unit Hacks . | . . . . Scanalyzer . | . . . . Garrison Access Hacks . | . . . . Unauthorized Hacks 6 | . 6 . . Terminals 6 | . 6 . . Assimilate 1 | . 1 . . Botnet 4 | . 4 . . Operators 1 | . 1 . . Fabricators . | . . . . Repair Stations . | . . . . Recycling Units . | . . . . Scanalyzers . | . . . . Garrison Access . | . . . . Data Cores Recovered . | . . . . Used . | . . . . Hacking Detections 7 | . 6 1 . Full Trace Events 2 | . 1 1 . Feedback Events . | . . . . Feedback Blocked . | . . . . Robot Schematics Acquired . | . . . . Robots Built . | . . . . Matter . | . . . . Time . | . . . . Total Robot Build Rating . | . . . . Part Schematics Acquired 4 | . 2 2 . Parts Built . | . . . . Matter . | . . . . Time . | . . . . Total Part Build Rating . | . . . . Parts Repaired . | . . . . Time . | . . . . Parts Recycled . | . . . . Recycled Matter . | . . . . Retrieved Matter . | . . . . Retrieved Components . | . . . . Parts Scanalyzed . | . . . . Part Schematics Acquired . | . . . . Parts Damaged . | . . . . Bothacking | -11 -10 -10 -10 ------------ Run | Scr Mat Min Exi Used RIF Installer . | . . . . Robots Hacked . | . . . . Non-combat . | . . . . Combat . | . . . . Robot Hacks Applied . | . . . . Relay Couplers Released . | . . . . Robots Rewired . | . . . . Allies Hacked . | . . . . Hacks Repelled . | . . . . Allies | -11 -10 -10 -10 -------- Run | Scr Mat Min Exi Total Allies . | . . . . Largest Group . | . . . . Highest-Rated Group . | . . . . Highest-Rated Ally . | . . . . Total Orders . | . . . . Ally Attacks . | . . . . Total Damage . | . . . . Kills . | . . . . Allies Corrupted . | . . . . Allies Melted . | . . . . Intel | -11 -10 -10 -10 ------- Run | Scr Mat Min Exi Robot Analysis Total 4 | . 4 . . Derelict Logs Recovered . | . . . . Drone Launches . | . . . . Drone Recoveries . | . . . . Exploration | -11 -10 -10 -10 ------------- Run | Scr Mat Min Exi Turns Passed 2695 | 39 858 843 955 Spaces Moved 1175 | 21 379 388 387 Core . | . . . . Treads 1122 | . 347 388 387 Legs 53 | 21 32 . . Wheels . | . . . . Hover . | . . . . Flight . | . . . . Fastest Speed 120 | 120 120 180 160 Average Speed 180 | 120 173 180 190 Slowest Speed 220 | 120 220 220 200 Overloaded Moves . | . . . . Propulsion Burnouts . | . . . . Robots Hopped . | . . . . Cave-ins Triggered . | . . . . Exploration Rate (%) 44 | 3 59 50 67 Regions Visited 3 Branch Regions 2 Pre-discovered Areas 1 | . . . 1 Known Exits Taken . | . . . . Unknown Exits Taken 3 | 1 1 1 . Scrap Searched 1 | . . 1 . Spaces Dug 3 | . 3 . . Terrain Destroyed 17 | . 3 7 7 Melee . | . . . . Projectile 3 | . 3 . . AOE 14 | . . 7 7 Terrain Rammed . | . . . . Walls Destroyed . | . . . . Machines Disabled . | . . . . Actions | -11 -10 -10 -10 --------- Run | Scr Mat Min Exi Total 1544 | 27 507 480 530 Wait 111 | . 33 42 36 Move 1172 | 20 378 387 387 Hop . | . . . . Pick Up 51 | 2 23 2 24 Fast Attach 8 | 1 5 1 1 Attach 16 | . 5 5 6 Detach 1 | . . . 1 Swap 19 | . 13 2 4 Drop 36 | . 13 1 22 Fire 123 | 4 37 33 49 Melee . | . . . . Ram . | . . . . Kick . | . . . . Crush 7 | . . 7 . Escape Stasis . | . . . . Rewire . | . . . . Trap . | . . . . Miscellaneous . | . . . . Route ------- -11/Scrapyard -10/Materials (discovered 2 exits: [*Mat] / *Min) -10/Mines (discovered 2 exits: [*Mat] / *Exi) -10/Exiles History --------- Turn | Location | Event 7 | -11/Scrapyard | Discovered new exit (range 3) 40 | -11/Scrapyard | Entered Materials 306 | -10/Materials | Discovered new exit (range 15) 571 | -10/Materials | Build established: Hauler-Mutant 797 | -10/Materials | Discovered new exit (range 12) 898 | -10/Materials | Entered Mines 918 | -10/Mines | Discovered new exit (range 9) 1156 | -10/Mines | Deemed a non-threat by the Exiles lab entrance 1169 | -10/Mines | Discovered new exit (range 5) 1396 | -10/Mines | Assembled infested the area 1623 | -10/Mines | Lost 3 parts (1n2w) 1630 | -10/Mines | Core integrity fell below 50% 1741 | -10/Mines | Entered Exiles 1789 | -10/Exiles | Met 8R-AWN 1820 | -10/Exiles | Met EX-HEX 1912 | -10/Exiles | Met EX-DEC 1944 | -10/Exiles | Learned location of Zion (-7) 2241 | -10/Exiles | Met EX-BIN 2263 | -10/Exiles | Aligned with FarCom system 2265 | -10/Exiles | Given EX-Vault access code 2311 | -10/Exiles | Opened EX-Vault 2329 | -10/Exiles | Found Superbattery 2334 | -10/Exiles | Found Gui. Plasma Cannon 2343 | -10/Exiles | Found Latent Energy Streamer 2388 | -10/Exiles | Warned to stay clear of 0b10 Research branches 2475 | -10/Exiles | Attacked by the Exiles 2637 | -10/Exiles | Lost 4 parts (1p2n1w) 2676 | -10/Exiles | Core integrity fell below 20% 2693 | -10/Exiles | Lost 3 parts (1n2w) 2696 | -10/Exiles | Destroyed by 8R-AWN with 8R-AWN's Boregun Last Messages --------------- 02641_ HV Slug penetrates Earth. 02645_ Penetrated by HV Slug. 02645_ HV Slug penetrates Wall. 02645_ HV Slug penetrates Earth. 02649_ Penetrated by HV Slug. 02654_ Critical hit. 02654_ Assault Rifle destroyed. 02658_ Penetrated by HV Slug. 02662_ Critical hit. 02662_ Lgt. Treads destroyed. 02662_ Penetrated by HV Slug. 02671_ HV Slug penetrates Wall. 02671_ HV Slug penetrates Earth. 02675_ Penetrated by HV Slug. 02675_ HV Slug penetrates Earth. 02679_ Penetrated by HV Slug. 02680_ Dropped Imp. Heat Sink. 02683_ Penetrated by HV Slug. 02688_ HV Slug penetrates Wall. 02692_ Penetrated by HV Slug. Map ----- +----------------------------------------------------+ | ?????????????????????????????????????????????????? | | ?????????????????????????????????????????????????? | | ?????????????????????????????????????????????????? | | ?????????????????????????????????????????????????? | | ?????????????????????????????????????????????????? | | ?????????????????????????????????????????????????? | | ?????????????????????????????????????????????????? | | ?????????????????????????????????????????????????? | | ?????????????????????????????????????????????????? | | ?????????????????????????????????????????????????? | | ?????????????? ??????????????#######?????????????? | | ?????????????? ######???????#!!! "#?????????????? | | ????????????? #""#??????# "#?????????????? | | ?????????????? ??????# "#?????????????? | | ?????????????" #????## ""#?????????????? | | ?????????????? #####" ""#????????????? | | ??????????????# ##" ""#????????????" | | ???????????????# # " #??????????????" | | ??????????????????# #?????????????"" | | ?????????????????????# ###???????????"" | | ?????????????????????### ###????????? | | ???????????????######## #??????????" | | ???????????????# !!"""" #?????????# | | ???????????????#! g ###" % #####???### | | ???????????????#! #?##" % """#####X# | | ???????????????#! @;#??#" | | ???????????????# !""""" ;;; #?#"# % | | ???????????????#########; # #?#### | | ??????????????????????? ##????#"" % | | ?????????????????????? # ????????### | | ?????????????????????## #??????????## | | ??????????????????????? ???????????## | | ??????????????????????# # #????????????##" | | ??????????????????????### #?????????????#""" | | ????????????????????????? ?????????????##" | | ????????????????????????? ?????????????#"" | | ????????????????????????? ?????????????#""" | | ????????????????????????? ????????????#""" | | ????????????????????????? ????????????#""" | | ????????????????????????? ????????????#"" | | ????????????????????????? ????????????#""" | | ??????????????????????????????????????#"" | | ??????????????????????????????????????##"" | | ???????????????????????????????????????#"""" | | ????????????????????????????????????????# | | ????????????????????????????????????????#" | | ????????????????????????????????????????#"""" | | ????????????????????????????????????????#"" | | ?????????????????????????????????????????" | | ?????????????????????????????????????????""" | +----------------------------------------------------+ Best States ------------- Heat Dissipation 25 Energy Generation 14 Energy Capacity 250 Matter Stores 300 Matter Capacity 300 Sight Range 16 Terrain Scan Density 10 Evasion (%) 40 Recoil Reduction 2 Item Schematics ----------------- Hcp. Storage Unit | -10/Materials | Hacked Lrg. Storage Unit | -10/Materials | Hacked Hcp. Battery | -10/Mines | Hacked Hcp. Matter Pod | -10/Mines | Hacked Robot Schematics ------------------ None Fabricated ------------ Nothing Alien Tech Used ----------------- None Achievements -------------- None Challenges ------------ None Game ------ Seed MobileAntigravGenerator Manual? 0 Play Time 00:29:09 Cumulative 42.5 hours Start 2020.10.25 @ 07:38:00 End 2020.10.25 @ 08:03:50 Sessions 1 Manual Loads 0 Difficulty Rogue Special Mode None Game No. 40 Rogue 40 Adventurer 0 Explorer 0 Win Type - Total 0 Types 0/0/0/0/0/0/0/0/0 Lore% 39 Gallery% 41 Achievement% 48 Wizard Run 0 Options --------- ASCII 0 Keyboard 1 Movement Numpad Keybinds 0 Fullscreen 1 Font 12/Terminus Map View 83x54 Tactical HUD 1 Map Filters NONE Filters NONE Steam 1 RUN: 50c531b4-27ba-42f2-82c0-60c0b6683c9b